[Event "94th Tradewise Hastings Congress"]
[Site "Hastings"]
[Date "2019.01.04"]
[Round "8"]
[White "Lalic, Bogdan"]
[Black "Bates, Richard A"]
[Result "1-0"]
[ECO "E71"]
[WhiteElo "2420"]
[BlackElo "2372"]
[Annotator "NA"]
[PlyCount "63"]
[EventDate "2018.12.28"]
[EventType "swiss"]
[EventCountry "ENG"]
[SourceTitle "playchess.com"]
[Source "ChessBase"]
[SourceQuality "1"]
[TimeControl "40/6000+30:3000+30"]

1. d4 {[%emt 0:00:00]} Nf6 {[%emt 0:00:00]} 2. c4 {[%emt 0:00:00]} g6 {[%emt 0:00:05]} 3. Nc3 {[%emt 0:00:00]} Bg7 {[%emt 0:00:07]} 4. e4 {[%emt 0:00:03]} d6 {[%emt 0:00:21]} 5. h3 {[%emt 0:00:13]} O-O {[%emt 0:01:12]} 6. Be3 {[%emt 0:00:09]} c5 {[%emt 0:11:23]} 7. dxc5 {[%emt 0:00:14]} Qa5 {[%emt 0:02:53]} 8. Bd3 {[%emt 0:00:10]} dxc5 {[%emt 0:11:00]} 9. e5 {[%emt 0:00:06]} Nfd7 {[%emt 0:06:51]} 10. f4 {[%emt 0:00:10]} Nc6 {[%emt 0:03:16]} 11. Nf3 {[%emt 0:00:08]} Rd8 {[%emt 0:10:58]} 12. Qb1 {[%emt 0:10:29]} Nb6 {[%emt 0:06:17]} 13. O-O {[%emt 0:00:34]} Nb4 {[%emt 0:02:01]} 14. Be2 {[%emt 0:00:09]} Bf5 {[%emt 0:04:31]} 15. Ne4 {[%emt 0:00:05]} Qa4 {[%emt 0:01:07]} 16. Nxc5 {[%emt 0:20:11]} Qc2 {[%emt 0:11:21]} 17. Qe1 {[%emt 0:09:44]} Nxc4 {[%emt 0:03:38]} 18. Nd4 {[%emt 0:04:27]} Qxb2 {[%emt 0:08:04]} 19. Bxc4 {[%emt 0:04:52]} Rxd4 {[%emt 0:00:33]} 20. Na4 {[%emt 0:01:23]} Qa3 {[%emt 0:06:33]} 21. Bxd4 {[%emt 0:00:08]} Nc2 {[%emt 0:03:30]} 22. Qc3 {[%emt 0:03:05]} Qxa4 {[%emt 0:00:37]} 23. Rad1 {[%emt 0:00:35]} Rc8 {[%emt 0:06:11]} 24. Bb3 {[%emt 0:00:12]} Qb5 {[%emt 0:02:17]} 25. Qf3 {[%emt 0:00:53]} Qb4 {[%emt 0:04:04]} 26. Bxa7 {[%emt 0:02:46]} Be4 {[%emt 0:01:32]} 27. Qf2 {[%emt 0:00:31]} e6 {[%emt 0:01:04]} 28. Rc1 {[%emt 0:02:29]} Qc3 {[%emt 0:00:56]} 29. Rxc2 {[%emt 0:02:55]} Bxc2 {[%emt 0:00:37]} 30. Rc1 {[%emt 0:00:00]} g5 {[%emt 0:00:20]} 31. Rxc2 {[%emt 0:00:00]} Qa1+ {[%emt 0:00:06]} 32. Qf1 {[%emt 0:00:02]} 1-0

[Event "94th Tradewise Hastings Congress"]
[Site "Hastings"]
[Date "2019.01.04"]
[Round "8"]
[White "Djuric, Stefan"]
[Black "Armstrong, Malcolm J"]
[Result "1/2-1/2"]
[ECO "B10"]
[WhiteElo "2371"]
[BlackElo "2052"]
[Annotator "NA"]
[PlyCount "132"]
[EventDate "2018.12.28"]
[EventType "swiss"]
[EventCountry "ENG"]
[SourceTitle "playchess.com"]
[Source "ChessBase"]
[SourceQuality "1"]
[TimeControl "40/6000+30:3000+30"]

1. e4 {[%emt 0:00:00]} c6 {[%emt 0:00:18]} 2. Nc3 {[%emt 0:00:05]} d5 {[%emt 0:00:11]} 3. Nf3 {[%emt 0:00:40]} dxe4 {[%emt 0:01:46]} 4. Nxe4 {[%emt 0:00:01]} Nf6 {[%emt 0:00:14]} 5. Nxf6+ {[%emt 0:01:06]} gxf6 {[%emt 0:00:14]} 6. d4 {[%emt 0:01:58]} Bf5 {[%emt 0:01:25]} 7. c3 {[%emt 0:04:26]} e6 {[%emt 0:00:18]} 8. Bf4 {[%emt 0:00:54]} Bd6 {[%emt 0:00:24]} 9. Bg3 {[%emt 0:02:11] B16: Caro-Kann: Bronstein-Larsen Variation} Qc7 {[%emt 0:00:22]} 10. Nd2 {[%emt 0:07:31]} (10. Qb3 Nd7 11. O-O-O O-O-O 12. Bd3 Bxd3 13. Rxd3 Bxg3 14. hxg3 Nc5 15. dxc5 Rxd3 16. Qa4 Rhd8 17. Qxa7 {0-1 (72) Yu,M (2093)-Ratkovic,M (2403) Budapest 2018}) 10... Nd7 {[%emt 0:04:26]} 11. Nc4 {[%emt 0:11:59]} Bxg3 {[%emt 0:00:55]} 12. hxg3 {[%emt 0:00:01]} O-O-O {[%emt 0:06:30]} 13. Qa4 $146 {[%emt 0:05:08]} ({Predecessor:} 13. Qb3 c5 14. O-O-O cxd4 15. Rxd4 Nc5 16. Qd1 Ne4 17. Rxd8+ Rxd8 {0-1 (27) Jiang,L-Visser,J (1773) Cammeray 2013}) 13... Kb8 {[%emt 0:02:26]} 14. Qa5 {[%emt 0:02:36]} c5 {[%emt 0:14:26]} 15. Qxc7+ {[%emt 0:07:10]} Kxc7 {[%emt 0:00:09]} 16. Ne3 {[%emt 0:00:04]} Bg6 {[%emt 0:06:07]} 17. Rh4 {[%emt 0:15:23]} cxd4 {[%emt 0:00:57]} 18. Rxd4 {[%emt 0:00:29]} Ne5 {[%emt 0:02:40]} 19. O-O-O {[%emt 0:00:04]} Nc6 {[%emt 0:06:44]} 20. Rxd8 {[%emt 0:03:42]} Rxd8 {[%emt 0:07:16]} 21. Rxd8 {[%emt 0:00:04]} Kxd8 {[%emt 0:01:36]} 22. b4 {[%emt 0:00:05]} Ke7 {[%emt 0:04:53]} 23. Kd2 {[%emt 0:01:14]} Kd6 {[%emt 0:05:02]} 24. a3 {[%emt 0:04:12]} Ne5 {[%emt 0:17:08]} 25. Be2 {[%emt 0:02:50]} f5 {[%emt 0:07:17]} 26. a4 {[%emt 0:05:32]} f6 {[%emt 0:00:47]} 27. f4 {[%emt 0:05:23]} Nd7 {[%emt 0:01:20]} 28. a5 {[%emt 0:02:32]} Be8 {[%emt 0:09:50]} 29. Nc4+ {[%emt 0:05:14]} Kc7 {[%emt 0:01:01]} 30. Na3 {[%emt 0:00:19]} a6 {[%emt 0:03:31]} 31. Nc4 {[%emt 0:01:09]} Nb8 {[%emt 0:02:00]} 32. Ne3 {[%emt 0:01:40]} Bc6 {[%emt 0:00:39]} 33. c4 {[%emt 0:03:44]} Be4 {[%emt 0:00:52]} 34. Kc3 {[%emt 0:00:15]} Nc6 {[%emt 0:01:08]} 35. Bf1 {[%emt 0:00:25]} Kd6 {[%emt 0:00:46]} 36. Nd1 {[%emt 0:01:00]} Ne7 {[%emt 0:00:45]} 37. Nf2 {[%emt 0:00:47]} Bc6 {[%emt 0:00:39]} 38. Nd3 {[%emt 0:03:49]} Ng6 {[%emt 0:00:46]} 39. Kd4 {[%emt 0:01:03]} e5+ {[%emt 0:00:38]} 40. Ke3 {[%emt 0:00:03]} Ne7 {[%emt 0:00:53]} 41. Ne1 {[%emt 0:52:34]} Bd7 {[%emt 0:05:33]} 42. Kd2 {[%emt 0:00:00]} Nc6 {[%emt 0:03:13]} 43. Kc3 {[%emt 0:00:00]} Nd4 {[%emt 0:02:04]} 44. Nd3 {[%emt 0:00:00]} Bc6 {[%emt 0:02:07]} 45. Nf2 {[%emt 0:00:00]} Ne6 {[%emt 0:02:20]} 46. b5 {[%emt 0:00:00]} Bd7 {[%emt 0:01:34]} 47. Kb4 {[%emt 0:00:00]} exf4 {[%emt 0:01:31]} 48. gxf4 {[%emt 0:00:00]} axb5 {[%emt 0:01:54]} 49. cxb5 {[%emt 0:00:00]} Nxf4 {[%emt 0:00:53]} 50. a6 {[%emt 0:00:00]} bxa6 {[%emt 0:00:13]} 51. bxa6 {[%emt 0:00:00]} Bc6 {[%emt 0:06:32]} 52. g3 {[%emt 0:00:00]} Nh5 {[%emt 0:00:27]} 53. g4 {[%emt 0:00:00]} fxg4 {[%emt 0:00:34]} 54. Nxg4 {[%emt 0:00:00]} f5 {[%emt 0:05:51]} 55. Nf2 {[%emt 0:00:00]} Nf4 {[%emt 0:03:54]} 56. Kc4 {[%emt 0:00:00]} Ne6 {[%emt 0:09:43]} 57. Bd3 {[%emt 0:00:00]} Ke5 {[%emt 0:00:33]} 58. Bc2 {[%emt 0:00:00]} h5 {[%emt 0:00:56]} 59. Nd3+ {[%emt 0:00:00]} Kd6 {[%emt 0:02:12]} 60. Nb4 {[%emt 0:00:00]} Be4 {[%emt 0:02:35]} 61. Bxe4 {[%emt 0:00:00]} fxe4 {[%emt 0:00:03]} 62. a7 {[%emt 0:00:00]} Nc7 {[%emt 0:00:08]} 63. Na6 {[%emt 0:00:00]} Na8 {[%emt 0:00:16]} 64. Kd4 {[%emt 0:00:00]} h4 {[%emt 0:00:16]} 65. Kxe4 {[%emt 0:00:00]} h3 $11 {[%emt 0:00:19]} 66. Kf3 {[%emt 0:00:00]} Kc6 {[%emt 0:00:16]} 1/2-1/2

[Event "94th Tradewise Hastings Congress"]
[Site "Hastings"]
[Date "2019.01.04"]
[Round "8"]
[White "Petrov, Vladimir Sergeev"]
[Black "Stefansson, Vignir Vatnar"]
[Result "0-1"]
[ECO "B01"]
[WhiteElo "2365"]
[BlackElo "2266"]
[Annotator "NA"]
[PlyCount "68"]
[EventDate "2018.12.28"]
[EventType "swiss"]
[EventCountry "ENG"]
[SourceTitle "playchess.com"]
[Source "ChessBase"]
[SourceQuality "1"]
[TimeControl "40/6000+30:3000+30"]

1. e4 {[%emt 0:04:27]} d5 {[%emt 0:00:00]} 2. exd5 {[%emt 0:00:26]} Qxd5 {[%emt 0:00:00]} 3. Nc3 {[%emt 0:00:06]} Qd6 {[%emt 0:00:03]} 4. g3 {[%emt 0:00:06]} Nc6 {[%emt 0:00:21]} 5. Bg2 {[%emt 0:00:12]} e5 {[%emt 0:00:08]} 6. Nf3 {[%emt 0:01:14]} Bg4 {[%emt 0:00:48]} 7. h3 {[%emt 0:00:54]} Bh5 {[%emt 0:00:08]} 8. d3 {[%emt 0:00:18]} O-O-O {[%emt 0:02:30]} 9. Be3 {[%emt 0:01:25]} f5 {[%emt 0:02:24]} 10. g4 {[%emt 0:25:38]} fxg4 {[%emt 0:03:17]} 11. Nd2 {[%emt 0:01:33]} Qd7 {[%emt 0:11:01]} 12. Nb5 {[%emt 0:41:52]} Nd4 {[%emt 0:03:10]} 13. Nxa7+ {[%emt 0:08:43]} Kb8 {[%emt 0:00:12]} 14. c3 {[%emt 0:01:45]} gxh3 {[%emt 0:03:43]} 15. Bf3 {[%emt 0:02:58]} Nxf3+ {[%emt 0:07:04]} 16. Nxf3 {[%emt 0:00:06]} Bxf3 {[%emt 0:00:51]} 17. Qxf3 {[%emt 0:00:13]} c5 {[%emt 0:00:10]} 18. d4 {[%emt 0:06:25]} cxd4 {[%emt 0:02:55]} 19. O-O-O {[%emt 0:00:48]} Bc5 {[%emt 0:01:32]} 20. cxd4 {[%emt 0:00:48]} exd4 {[%emt 0:01:14]} 21. Kb1 {[%emt 0:07:23]} Kxa7 {[%emt 0:01:07]} 22. Qh5 {[%emt 0:02:32]} Qd5 {[%emt 0:01:20]} 23. Qxh3 {[%emt 0:01:07]} Nf6 {[%emt 0:00:39]} 24. b4 {[%emt 0:00:27]} Qe4+ {[%emt 0:00:21]} 25. Ka1 {[%emt 0:00:23]} Bxb4 {[%emt 0:01:04]} 26. Bd2 {[%emt 0:00:02]} Bxd2 {[%emt 0:00:19]} 27. Rxd2 {[%emt 0:00:21]} d3 28. Rb1 {[%emt 0:00:32]} Qd4+ {[%emt 0:00:14]} 29. Rdb2 {[%emt 0:00:14]} Rd6 {[%emt 0:01:58]} 30. Qf5 {[%emt 0:01:31]} Nd5 {[%emt 0:00:39]} 31. Qf7 {[%emt 0:00:24]} Rb6 {[%emt 0:00:36]} 32. a3 d2 {[%emt 0:00:17]} 33. Ka2 {[%emt 0:00:57]} Nc3+ {[%emt 0:00:13]} 34. Ka1 {[%emt 0:00:05]} Nxb1 {[%emt 0:00:13]} 0-1

[Event "94th Tradewise Hastings Congress"]
[Site "Hastings"]
[Date "2019.01.04"]
[Round "8"]
[White "Murphy, Conor E"]
[Black "Cherniaev, Alexander"]
[Result "1/2-1/2"]
[ECO "C42"]
[WhiteElo "2331"]
[BlackElo "2393"]
[Annotator "NA"]
[PlyCount "102"]
[EventDate "2018.12.28"]
[EventType "swiss"]
[EventCountry "ENG"]
[SourceTitle "playchess.com"]
[Source "ChessBase"]
[SourceQuality "1"]
[TimeControl "40/6000+30:3000+30"]

1. e4 {[%emt 0:00:30]} e5 {[%emt 0:05:48]} 2. Nf3 {[%emt 0:00:08]} Nf6 {[%emt 0:00:05]} 3. Nxe5 {[%emt 0:00:22]} d6 {[%emt 0:00:09]} 4. Nf3 {[%emt 0:00:18]} Nxe4 {[%emt 0:00:09]} 5. Nc3 {[%emt 0:00:19]} Nf6 {[%emt 0:00:08]} 6. d4 {[%emt 0:00:08]} Be7 {[%emt 0:00:05]} 7. Bd3 {[%emt 0:00:20]} O-O {[%emt 0:00:09]} 8. O-O {[%emt 0:00:13]} Nc6 {[%emt 0:00:24]} 9. Re1 {[%emt 0:04:32]} Bg4 {[%emt 0:11:21]} 10. h3 {[%emt 0:22:29]} Bh5 {[%emt 0:00:12]} 11. Be3 {[%emt 0:01:55]} Re8 {[%emt 0:03:12]} 12. a3 {[%emt 0:10:11]} a6 {[%emt 0:07:37]} 13. Bf5 {[%emt 0:04:54]} Bf8 {[%emt 0:10:49]} 14. g4 {[%emt 0:04:43]} Bg6 {[%emt 0:00:08]} 15. Qd3 {[%emt 0:00:24]} Bxf5 {[%emt 0:03:57]} 16. gxf5 {[%emt 0:02:35]} Qd7 {[%emt 0:02:26]} 17. Bg5 {[%emt 0:01:28]} Nh5 {[%emt 0:00:57]} 18. d5 {[%emt 0:10:02]} Ne5 {[%emt 0:06:04]} 19. Nxe5 {[%emt 0:02:11]} dxe5 {[%emt 0:07:01]} 20. Qf3 {[%emt 0:02:56]} g6 {[%emt 0:00:30]} 21. fxg6 {[%emt 0:01:40]} hxg6 {[%emt 0:01:02]} 22. Ne4 {[%emt 0:01:09]} Qxd5 {[%emt 0:08:12]} 23. Qxh5 {[%emt 0:02:46]} Qxe4 {[%emt 0:00:08]} 24. Rxe4 {[%emt 0:00:11]} gxh5 {[%emt 0:00:13]} 25. Rh4 {[%emt 0:02:31]} Kg7 {[%emt 0:17:36]} 26. Be3 {[%emt 0:02:08]} f5 {[%emt 0:04:11]} 27. Rxh5 {[%emt 0:01:32]} f4 {[%emt 0:00:11]} 28. Bd2 {[%emt 0:00:58]} Kg6 {[%emt 0:00:40]} 29. Rh4 {[%emt 0:02:40]} Be7 {[%emt 0:00:33]} 30. Rg4+ {[%emt 0:00:14]} Kf5 {[%emt 0:00:02]} 31. f3 {[%emt 0:02:50]} Rad8 {[%emt 0:01:16]} 32. Bc3 {[%emt 0:04:06]} Bf6 {[%emt 0:04:31]} 33. Re1 {[%emt 0:00:43]} Rd7 {[%emt 0:00:40]} 34. Kg2 {[%emt 0:00:34]} Red8 {[%emt 0:01:54]} 35. Rh1 {[%emt 0:06:31]} Rh7 {[%emt 0:00:43]} 36. Re1 {[%emt 0:00:49]} b6 {[%emt 0:00:11]} 37. Rh1 {[%emt 0:02:21]} a5 {[%emt 0:01:56]} 38. a4 {[%emt 0:01:38]} Bh4 {[%emt 0:04:23]} 39. Rf1 {[%emt 0:01:17]} Bf6 {[%emt 0:01:47]} 40. Rh1 {[%emt 0:00:06]} Rdh8 {[%emt 0:00:07]} 41. Bd2 {[%emt 0:55:00]} Rd7 {[%emt 0:18:37]} 42. Bc3 {[%emt 0:00:00]} Rhd8 {[%emt 0:00:11]} 43. Kf2 {[%emt 0:00:00]} Rd5 {[%emt 0:04:08]} 44. Rhg1 {[%emt 0:00:00]} Rh8 {[%emt 0:02:16]} 45. Kg2 {[%emt 0:00:00]} Rd7 {[%emt 0:01:17]} 46. Re1 {[%emt 0:00:00]} Rdh7 {[%emt 0:00:14]} 47. Rh1 {[%emt 0:00:00]} Be7 {[%emt 0:00:36]} 48. Re1 {[%emt 0:00:00]} Bd6 {[%emt 0:00:32]} 49. Rh1 {[%emt 0:00:00]} Bc5 {[%emt 0:14:16]} 50. Re1 {[%emt 0:00:00]} Be3 {[%emt 0:00:22]} 51. Rh1 {[%emt 0:00:00]} Bc5 {[%emt 0:03:56]} 1/2-1/2

[Event "94th Tradewise Hastings Congress"]
[Site "Hastings"]
[Date "2019.01.04"]
[Round "8"]
[White "Derakhshani, Borna"]
[Black "Anderson, John"]
[Result "1-0"]
[ECO "D02"]
[WhiteElo "2325"]
[BlackElo "2163"]
[Annotator "NA"]
[PlyCount "67"]
[EventDate "2018.12.28"]
[EventType "swiss"]
[EventCountry "ENG"]
[SourceTitle "playchess.com"]
[Source "ChessBase"]
[SourceQuality "1"]
[TimeControl "40/6000+30:3000+30"]

1. d4 {[%emt 0:08:14]} d5 {[%emt 0:00:00]} 2. Bf4 {[%emt 0:00:42]} Nf6 {[%emt 0:00:13]} 3. Nf3 {[%emt 0:00:11]} c5 {[%emt 0:00:33]} 4. e3 {[%emt 0:00:10]} Nc6 {[%emt 0:00:41]} 5. c3 {[%emt 0:01:05]} Qb6 {[%emt 0:00:13]} 6. Qb3 {[%emt 0:00:04]} c4 {[%emt 0:01:14]} 7. Qc2 {[%emt 0:00:06]} Bf5 {[%emt 0:00:25]} 8. Qc1 {[%emt 0:00:05]} e6 {[%emt 0:00:48]} 9. h3 h6 {[%emt 0:00:48]} 10. Nbd2 {[%emt 0:03:24]} Be7 {[%emt 0:00:36]} 11. Be2 {[%emt 0:00:17]} O-O {[%emt 0:00:14]} 12. O-O {[%emt 0:00:21]} Rfc8 {[%emt 0:00:12]} 13. Bd1 {[%emt 0:01:15]} Qd8 {[%emt 0:01:57]} 14. Bc2 {[%emt 0:01:00]} Bxc2 {[%emt 0:00:28]} 15. Qxc2 {[%emt 0:00:03]} b5 {[%emt 0:00:08]} 16. Rfe1 {[%emt 0:04:04]} Bd6 {[%emt 0:05:02]} 17. Rad1 {[%emt 0:06:05]} Rab8 {[%emt 0:06:50]} 18. a3 {[%emt 0:08:29]} Rb7 {[%emt 0:07:46]} 19. Bxd6 {[%emt 0:06:40]} Qxd6 {[%emt 0:00:33]} 20. e4 {[%emt 0:00:04]} dxe4 {[%emt 0:00:57]} 21. Nxe4 {[%emt 0:00:26]} Nxe4 {[%emt 0:00:09]} 22. Qxe4 {[%emt 0:00:20]} Rd7 {[%emt 0:00:16]} 23. Qg4 {[%emt 0:00:26]} Rcd8 {[%emt 0:03:27]} 24. Rd2 {[%emt 0:02:10]} a5 {[%emt 0:02:29]} 25. Rde2 {[%emt 0:00:56]} Qc7 {[%emt 0:14:39]} 26. Nh4 {[%emt 0:05:50]} Rd5 {[%emt 0:11:34]} 27. f4 {[%emt 0:02:04]} h5 {[%emt 0:04:13]} 28. Qg3 {[%emt 0:05:01]} g5 {[%emt 0:06:30]} 29. Re4 {[%emt 0:04:19]} Kh8 {[%emt 0:03:41]} 30. Nf3 {[%emt 0:01:02]} Rg8 {[%emt 0:00:11]} 31. Ne5 {[%emt 0:01:25]} f5 {[%emt 0:11:57]} 32. R4e2 {[%emt 0:01:06]} Nxe5 {[%emt 0:01:02]} 33. Rxe5 {[%emt 0:01:11]} gxf4 {[%emt 0:03:01]} 34. Qf3 {[%emt 0:01:47]} 1-0

[Event "94th Tradewise Hastings Congress"]
[Site "Hastings"]
[Date "2019.01.04"]
[Round "8"]
[White "Pitschka, Claus"]
[Black "Spanton, Tim R"]
[Result "1-0"]
[ECO "D41"]
[WhiteElo "2241"]
[BlackElo "1954"]
[Annotator "NA"]
[PlyCount "43"]
[EventDate "2018.12.28"]
[EventType "swiss"]
[EventCountry "ENG"]
[SourceTitle "playchess.com"]
[Source "ChessBase"]
[SourceQuality "1"]
[TimeControl "40/6000+30:3000+30"]

1. d4 {[%emt 0:09:21]} d5 {[%emt 0:00:00]} 2. c4 {[%emt 0:00:06]} e6 {[%emt 0:00:00]} 3. Nc3 {[%emt 0:00:22]} Nf6 {[%emt 0:00:00]} 4. cxd5 {[%emt 0:00:21]} Nxd5 {[%emt 0:00:00]} 5. e4 {[%emt 0:00:38]} Nxc3 {[%emt 0:00:00]} 6. bxc3 {[%emt 0:00:05]} c5 {[%emt 0:00:05]} 7. Nf3 {[%emt 0:01:59]} cxd4 {[%emt 0:00:06]} 8. cxd4 {[%emt 0:00:07]} Bb4+ {[%emt 0:00:05]} 9. Bd2 {[%emt 0:00:06]} Bxd2+ {[%emt 0:00:05]} 10. Qxd2 {[%emt 0:00:06]} O-O {[%emt 0:00:10]} 11. Bd3 {[%emt 0:04:57]} Nc6 {[%emt 0:02:23]} 12. Qc3 {[%emt 0:00:12]} Qa5 {[%emt 0:01:40]} 13. Qxa5 {[%emt 0:01:10]} Nxa5 {[%emt 0:00:06]} 14. Ke2 {[%emt 0:00:31]} b6 {[%emt 0:00:59]} 15. Rac1 {[%emt 0:12:49]} Bb7 {[%emt 0:00:26]} 16. Ke3 {[%emt 0:00:32]} Rac8 {[%emt 0:01:12]} 17. Ne5 {[%emt 0:01:52]} Rxc1 {[%emt 0:04:22]} 18. Rxc1 {[%emt 0:00:07]} Rc8 {[%emt 0:00:09]} 19. Rxc8+ {[%emt 0:00:36]} Bxc8 {[%emt 0:00:05]} 20. d5 {[%emt 0:00:27]} Kf8 {[%emt 0:01:16]} 21. d6 {[%emt 0:07:51]} Bb7 {[%emt 0:00:14]} 22. Bb5 {[%emt 0:03:02] Ke8 [%emt 00:04:50]} 1-0

[Event "94th Tradewise Hastings Congress"]
[Site "Hastings"]
[Date "2019.01.04"]
[Round "8"]
[White "Villiers, Thomas"]
[Black "Midhun, P U"]
[Result "0-1"]
[ECO "C25"]
[WhiteElo "2205"]
[BlackElo "2010"]
[Annotator "NA"]
[PlyCount "138"]
[EventDate "2018.12.28"]
[EventType "swiss"]
[EventCountry "ENG"]
[SourceTitle "playchess.com"]
[Source "ChessBase"]
[SourceQuality "1"]
[TimeControl "40/6000+30:3000+30"]

1. e4 {[%emt 0:01:36]} e5 {[%emt 0:00:00]} 2. Nc3 {[%emt 0:00:05]} Nc6 {[%emt 0:00:18]} 3. g3 {[%emt 0:06:17]} Bc5 {[%emt 0:03:13]} 4. Bg2 {[%emt 0:00:10]} d6 {[%emt 0:04:37]} 5. Nge2 {[%emt 0:02:08]} h5 {[%emt 0:02:41]} 6. h3 {[%emt 0:01:36]} a6 {[%emt 0:03:35]} 7. d3 {[%emt 0:00:41]} Be6 {[%emt 0:04:36]} 8. Nd5 {[%emt 0:03:36]} Nd4 {[%emt 0:12:57]} 9. Nxd4 {[%emt 0:05:56]} Bxd4 {[%emt 0:00:03]} 10. c3 {[%emt 0:00:10]} Ba7 {[%emt 0:01:02]} 11. O-O {[%emt 0:10:36]} c6 {[%emt 0:02:50]} 12. Ne3 {[%emt 0:00:06]} g5 {[%emt 0:15:02]} 13. d4 {[%emt 0:04:46]} Qf6 {[%emt 0:01:20]} 14. d5 {[%emt 0:01:21]} Bd7 {[%emt 0:00:33]} 15. dxc6 {[%emt 0:00:48]} bxc6 {[%emt 0:00:03]} 16. Nc4 {[%emt 0:00:57]} h4 {[%emt 0:08:51]} 17. Be3 {[%emt 0:10:43]} Rh6 {[%emt 0:08:54]} 18. Qd2 {[%emt 0:04:53]} Bxe3 {[%emt 0:08:36]} 19. fxe3 {[%emt 0:01:00]} Qe6 {[%emt 0:00:52]} 20. Nb6 {[%emt 0:00:15]} Rb8 {[%emt 0:00:20]} 21. Nxd7 {[%emt 0:00:15]} Qxd7 {[%emt 0:00:03]} 22. g4 {[%emt 0:00:15]} Rf6 {[%emt 0:05:38]} 23. Rf5 {[%emt 0:01:14]} Rxf5 {[%emt 0:00:48]} 24. exf5 {[%emt 0:00:05]} f6 {[%emt 0:00:47]} 25. e4 {[%emt 0:03:18]} Ne7 {[%emt 0:01:15]} 26. Rd1 {[%emt 0:01:19]} Nc8 {[%emt 0:00:34]} 27. Bf1 {[%emt 0:00:58]} Ke7 {[%emt 0:04:21]} 28. Bc4 {[%emt 0:01:36]} a5 {[%emt 0:01:06]} 29. Be6 {[%emt 0:00:33]} Qc7 {[%emt 0:00:06]} 30. b4 {[%emt 0:01:43]} axb4 {[%emt 0:00:40]} 31. cxb4 {[%emt 0:00:01]} Na7 {[%emt 0:00:25]} 32. Kh1 {[%emt 0:01:50]} Nb5 {[%emt 0:01:22]} 33. Bb3 {[%emt 0:05:09]} Qb6 {[%emt 0:04:52]} 34. Qe2 {[%emt 0:00:01]} Na3 {[%emt 0:01:38]} 35. Rc1 {[%emt 0:02:40]} Kd7 {[%emt 0:02:27]} 36. Ba4 {[%emt 0:02:47]} Qxb4 {[%emt 0:05:01]} 37. Bxc6+ {[%emt 0:00:20]} Kd8 {[%emt 0:00:07]} 38. Qd3 {[%emt 0:01:42]} Kc7 {[%emt 0:04:38]} 39. Ba4+ {[%emt 0:03:59]} Kb7 {[%emt 0:00:49]} 40. Qd5+ {[%emt 0:00:33]} Ka7 {[%emt 0:00:25]} 41. Bb3 {[%emt 0:54:10]} Rb5 {[%emt 0:52:04]} 42. Qd3 {[%emt 0:10:26]} Rc5 {[%emt 0:00:00]} 43. Qe3 {[%emt 0:00:00]} Kb8 {[%emt 0:00:00]} 44. Bd5 {[%emt 0:00:00]} Rxc1+ {[%emt 0:00:00]} 45. Qxc1 {[%emt 0:00:00]} Qb1 {[%emt 0:00:00]} 46. Qxb1+ {[%emt 0:00:00]} Nxb1 {[%emt 0:00:00]} 47. Bc6 {[%emt 0:00:00]} Kc7 {[%emt 0:00:00]} 48. Ba8 {[%emt 0:00:00]} Kb6 {[%emt 0:00:00]} 49. Kg2 {[%emt 0:00:00]} Nc3 {[%emt 0:00:00]} 50. a3 {[%emt 0:00:00]} Nb5 {[%emt 0:00:00]} 51. Kf3 {[%emt 0:00:00]} Nxa3 {[%emt 0:00:00]} 52. Bd5 {[%emt 0:00:00]} Kc5 {[%emt 0:00:00]} 53. Ke3 {[%emt 0:00:00]} Nc2+ {[%emt 0:00:00]} 54. Kd2 {[%emt 0:00:00]} Nb4 {[%emt 0:00:00]} 55. Bb7 {[%emt 0:00:00]} Kd4 {[%emt 0:00:00]} 56. Ke2 {[%emt 0:00:00]} d5 {[%emt 0:00:00]} 57. exd5 {[%emt 0:00:00]} Nxd5 {[%emt 0:00:00]} 58. Kf2 {[%emt 0:00:00]} Nf4 {[%emt 0:00:00]} 59. Kf3 {[%emt 0:00:00]} Nxh3 {[%emt 0:00:00]} 60. Bc6 {[%emt 0:00:00]} Nf4 {[%emt 0:00:00]} 61. Bb7 {[%emt 0:00:00]} h3 {[%emt 0:00:00]} 62. Kg3 {[%emt 0:00:00]} e4 {[%emt 0:00:00]} 63. Ba6 {[%emt 0:00:00]} Kc3 {[%emt 0:00:00]} 64. Bf1 {[%emt 0:00:00]} Kd2 {[%emt 0:00:00]} 65. Kh2 {[%emt 0:00:00]} e3 {[%emt 0:00:00]} 66. Bxh3 {[%emt 0:00:00]} Nxh3 {[%emt 0:00:00]} 67. Kxh3 {[%emt 0:00:00]} e2 {[%emt 0:00:00]} 68. Kg2 {[%emt 0:00:00]} e1=Q {[%emt 0:00:00]} 69. Kh3 {[%emt 0:00:00]} Qh4+ {[%emt 0:00:00]} 0-1

[Event "94th Tradewise Hastings Congress"]
[Site "Hastings"]
[Date "2019.01.04"]
[Round "8"]
[White "Payne, Matthew J"]
[Black "Taylor, Adam C"]
[Result "1/2-1/2"]
[ECO "B31"]
[WhiteElo "2182"]
[BlackElo "2331"]
[Annotator "NA"]
[PlyCount "94"]
[EventDate "2018.12.28"]
[EventType "swiss"]
[EventCountry "ENG"]
[SourceTitle "playchess.com"]
[Source "ChessBase"]
[SourceQuality "1"]
[TimeControl "40/6000+30:3000+30"]

1. e4 {[%emt 0:00:00]} c5 {[%emt 0:00:00]} 2. Nf3 {[%emt 0:00:29]} Nc6 {[%emt 0:00:00]} 3. Bb5 {[%emt 0:00:09]} g6 {[%emt 0:00:20]} 4. Bxc6 {[%emt 0:00:27]} bxc6 {[%emt 0:01:17]} 5. O-O {[%emt 0:02:04]} Bg7 {[%emt 0:00:09]} 6. Re1 {[%emt 0:00:07]} Nf6 {[%emt 0:01:06]} 7. e5 {[%emt 0:04:18]} Nd5 {[%emt 0:00:07]} 8. c4 {[%emt 0:01:58]} Nc7 {[%emt 0:00:02]} 9. d4 {[%emt 0:00:10]} cxd4 {[%emt 0:00:08]} 10. Qxd4 {[%emt 0:00:09]} O-O {[%emt 0:01:05]} 11. Qh4 {[%emt 0:06:43]} f6 {[%emt 0:03:48]} 12. Nc3 {[%emt 0:07:59]} Ne6 {[%emt 0:00:08]} 13. exf6 {[%emt 0:07:17]} Bxf6 {[%emt 0:05:33]} 14. Ng5 {[%emt 0:03:44]} Nxg5 {[%emt 0:10:46]} 15. Bxg5 {[%emt 0:00:11]} Bxg5 {[%emt 0:14:26]} 16. Qxg5 {[%emt 0:00:23]} e6 {[%emt 0:00:23]} 17. Qxd8 {[%emt 0:04:52]} Rxd8 {[%emt 0:00:04]} 18. c5 {[%emt 0:00:04]} Rf8 {[%emt 0:00:14]} 19. Rad1 {[%emt 0:09:47]} Rb8 {[%emt 0:01:48]} 20. b3 {[%emt 0:00:37]} Kf7 {[%emt 0:00:19]} 21. Ne4 {[%emt 0:06:24]} Ke7 {[%emt 0:00:31]} 22. Rd4 {[%emt 0:03:37]} Rf5 {[%emt 0:12:43]} 23. Ra4 {[%emt 0:04:54]} a6 {[%emt 0:00:45]} 24. Rc1 {[%emt 0:04:56]} Rd5 {[%emt 0:03:26]} 25. f3 {[%emt 0:03:52]} Rb5 {[%emt 0:09:53]} 26. Nd6 {[%emt 0:04:36]} Rxd6 {[%emt 0:00:13]} 27. cxd6+ {[%emt 0:00:03]} Kxd6 {[%emt 0:00:06]} 28. Rh4 {[%emt 0:00:26]} h5 {[%emt 0:00:12]} 29. g4 {[%emt 0:01:41]} Bb7 {[%emt 0:04:00]} 30. gxh5 {[%emt 0:01:28]} gxh5 {[%emt 0:00:09]} 31. Kf2 {[%emt 0:00:11]} a5 {[%emt 0:06:52]} 32. Rg1 {[%emt 0:02:12]} Rc5 {[%emt 0:01:01]} 33. Rd4+ {[%emt 0:04:46]} Kc7 {[%emt 0:01:22]} 34. Rg7 {[%emt 0:00:11]} Bc8 {[%emt 0:00:58]} 35. Ke3 {[%emt 0:01:09]} Rc3+ {[%emt 0:01:39]} 36. Rd3 {[%emt 0:00:45]} Rc2 {[%emt 0:00:54]} 37. Rd2 {[%emt 0:00:18]} Rc3+ {[%emt 0:00:08]} 38. Kf2 {[%emt 0:01:08]} a4 {[%emt 0:09:00]} 39. bxa4 {[%emt 0:00:42]} Ra3 {[%emt 0:00:25]} 40. Rh7 {[%emt 0:00:29]} c5 {[%emt 0:00:04]} 41. Rxh5 {[%emt 0:50:47]} d5 {[%emt 0:50:17]} 42. Rg5 {[%emt 0:08:43]} c4 {[%emt 0:03:23]} 43. h4 {[%emt 0:01:23]} c3 {[%emt 0:00:00]} 44. Rc2 {[%emt 0:00:00]} Ba6 {[%emt 0:00:00]} 45. Ke3 {[%emt 0:00:00]} Kd6 {[%emt 0:00:00]} 46. h5 {[%emt 0:00:00]} Rxa4 {[%emt 0:00:00]} 47. Kf2 {[%emt 0:00:00]} d4 {[%emt 0:00:00]} 1/2-1/2